bitfinex/quotes_ETHUSD_20241223
["timestamp","ask_amount","ask_price","bid_price","bid_amount"]
[1734995444135,2.89393,3455.5,3455.2,6.6016]
[1734995444472,3.0,3455.4,3455.2,6.6016]
[1734995444638,3.0,3455.5,3455.2,6.6016]
[1734995445835,3.0,3455.9,3455.2,6.6016]
[1734995446037,0.91864394,3455.8,3455.2,6.6016]
[1734995446238,2.89376,3455.8,3455.2,6.6016]
[1734995446434,3.4434,3456.2,3455.2,6.6016]
[1734995446435,2.89378,3455.7,3455.2,6.6016]
[1734995446623,5.89389,3455.6,3455.2,6.6016]
[1734995447378,2.89348,3456.1,3455.2,6.6016]
[1734995447379,6.29300935,3456.0,3455.2,5.7883]
[1734995447578,3.4441,3455.3,3455.2,5.7883]
[1734995447875,6.4441,3455.3,3455.2,5.7883]
[1734995448176,7.2098,3455.3,3455.2,5.7883]
[1734995449876,5.8941,3455.3,3455.2,5.7883]
[1734995450531,6.4441,3455.3,3455.2,5.7883]
[1734995450735,8.59321701,3455.3,3455.2,5.7883]
[1734995451298,4.09706072,3455.6,3455.2,5.7883]
[1734995451299,1.20315072,3455.6,3455.2,5.7883]
[1734995452071,3.65911,3456.2,3455.2,5.7883]
[1734995452405,2.89382,3455.7,3455.2,5.7883]
[1734995452989,3.0,3455.6,3455.2,5.7883]
[1734995453699,3.0,3455.5,3455.2,5.7883]
[1734995454273,3.0,3455.4,3455.2,5.7883]
[1734995454608,3.0,3455.6,3455.2,5.7883]
[1734995454775,3.0,3455.9,3455.3,0.7977]
[1734995454955,3.0,3456.1,3455.3,6.5859]
[1734995455303,1.20315072,3456.4,3455.3,9.47999]
[1734995455511,3.29300935,3456.1,3455.3,6.5859]
[1734995455813,2.89402,3455.4,3455.3,5.7882]
[1734995456194,2.89374,3455.8,3455.3,5.7882]
[1734995456195,2.89375,3455.8,3455.3,5.7882]
[1734995456521,0.57533594,3456.3,3455.4,0.02893963]
[1734995456522,3.0,3456.2,3455.4,0.02893963]
[1734995456725,1.20315072,3456.3,3455.5,0.7977]
[1734995456869,1.20315072,3456.3,3455.5,6.5856]
[1734995457065,1.20315072,3456.3,3455.5,5.7879]
[1734995457294,1.20315072,3456.3,3455.8,2.8936]
[1734995457507,1.20315072,3456.3,3455.9,1.08706]
[1734995457725,1.20315072,3456.6,3455.9,6.87426]
[1734995457911,1.20315072,3456.6,3456.0,0.7977]
[1734995458210,1.20315072,3456.6,3456.0,6.5847]
[1734995458596,1.20315072,3456.6,3456.4,2.89317]
[1734995458797,1.20315072,3456.6,3456.5,3.980107]
[1734995459003,1.20315072,3457.4,3457.0,0.7977]
[1734995459197,1.20315072,3457.4,3457.0,6.5831]
[1734995459812,1.20315072,3457.4,3457.2,0.7977]
[1734995460019,1.20315072,3457.4,3457.3,3.55074]
[1734995460317,4.49616007,3458.5,3457.3,5.7849]
[1734995460504,3.0,3458.1,3457.3,5.7849]
[1734995460918,5.89151,3458.4,3457.3,5.7849]
[1734995461214,2.89151,3458.4,3457.5,0.7977]
[1734995461531,2.89151,3458.4,3457.6,0.02891642]
[1734995461731,0.44561226,3458.3,3457.6,5.7844]
[1734995461930,2.89183,3458.1,3457.6,5.7844]
[1734995462131,2.89187,3458.0,3457.6,5.7844]
[1734995462832,5.89209,3457.7,3457.6,5.7844]
[1734995463033,3.0,3457.8,3457.6,5.7844]
[1734995463352,6.481283,3457.8,3457.6,5.7844]
[1734995464226,2.89209,3457.7,3457.6,5.7844]
[1734995464535,9.73509935,3457.7,3457.6,5.7844]
[1734995464706,3.0,3457.7,3457.6,5.7844]
[1734995464907,2.89162,3458.3,3457.6,5.7844]
[1734995464908,3.0,3458.2,3457.6,5.7844]
[1734995465166,2.89185,3458.0,3457.6,5.7844]
[1734995465438,2.89138,3458.6,3457.6,5.7844]
[1734995465741,1.20315072,3458.7,3457.6,5.7844]
[1734995465947,1.20315072,3458.7,3457.7,0.7977]
[1734995466236,1.20315072,3458.7,3458.0,0.8193]
[1734995466443,1.20315072,3458.7,3458.0,6.603]
[1734995467341,0.83159272,3458.7,3458.0,6.603]
[1734995467540,2.89176,3458.1,3458.0,5.7837]
[1734995468197,5.89176,3458.1,3458.0,5.7837]
[1734995469310,3.0,3458.4,3458.0,5.7837]
[1734995469511,3.0,3458.5,3458.0,5.7837]
[1734995469712,1.20315072,3459.2,3458.2,0.8193]
[1734995469938,1.20315072,3459.2,3458.3,0.66319145]
[1734995470102,4.09400072,3459.2,3458.3,6.44639145]
[1734995470303,1.20315072,3459.2,3458.3,6.44639145]
[1734995470659,2.89094,3459.1,3458.3,6.44639145]
[1734995470963,1.20315072,3459.2,3458.4,3.61806915]
[1734995471108,2.89027,3459.9,3458.5,0.8193]
[1734995471109,2.89051,3459.6,3458.5,0.8193]
[1734995471464,2.89069,3459.4,3458.5,6.6022]
[1734995471759,3.29300935,3459.8,3458.6,0.8193]
[1734995472043,1.99175072,3460.2,3458.6,0.8193]
[1734995472044,1.20315072,3460.2,3458.8,0.8193]
[1734995472362,2.89063,3459.5,3459.0,0.8193]
[1734995472541,0.7886,3460.1,3459.0,6.6013]
[1734995472700,2.89077,3459.3,3459.0,6.6013]
[1734995473543,5.89075,3459.3,3459.0,6.6013]
[1734995473963,3.0,3459.7,3459.0,6.6013]
[1734995474458,2.88974,3460.6,3459.2,0.8193]
[1734995474459,3.29300935,3460.6,3459.2,0.8193]
[1734995474756,2.88959,3460.7,3459.4,0.8193]
[1734995474911,2.88959,3460.7,3459.7,0.8193]
[1734995475105,4.49616007,3461.1,3459.7,6.6001]
[1734995475346,2.88974,3460.6,3459.7,6.6001]
[1734995476426,2.88987,3460.4,3459.7,6.6001]
[1734995476666,2.88967,3460.6,3459.7,6.6001]
[1734995476861,2.89034,3459.8,3459.7,6.6001]
[1734995477259,5.89034,3459.8,3459.7,5.7808]
[1734995477463,6.768388,3459.8,3459.7,5.7808]
[1734995478587,7.318388,3459.8,3459.7,5.7808]
[1734995478908,3.55,3459.7,3458.5,0.8421]
[1734995479202,3.0,3458.6,3458.5,0.8421]
[1734995479365,3.0,3458.6,3458.5,6.624]
[1734995479564,3.0,3458.6,3458.5,5.7819]
[1734995479565,5.89134,3458.6,3458.5,5.7819]
[1734995480087,3.0,3458.9,3458.5,6.36009]
[1734995480258,3.0,3459.5,3458.6,0.8421]
[1734995480460,3.0,3459.3,3458.6,6.6247]
[1734995480661,5.89077,3459.3,3458.6,6.6247]
[1734995480892,0.03613461,3459.2,3458.6,6.6247]
[1734995481075,2.89125,3458.7,3458.6,5.7826]
[1734995481265,6.180375,3458.7,3458.6,5.7826]
[1734995481682,6.730375,3458.7,3458.6,2.89126]
[1734995481906,3.0,3458.6,3457.5,0.7913]
[1734995482107,3.0,3458.2,3457.5,0.7913]
[1734995482314,2.89198,3457.9,3457.5,6.5749]
[1734995482606,2.89208,3457.8,3457.5,6.5749]
[1734995482831,3.0,3457.7,3457.5,6.5749]
[1734995482983,3.0,3458.3,3457.5,6.5749]
[1734995483183,3.0,3458.0,3457.5,6.5749]
[1734995483365,3.0,3458.3,3457.5,6.5749]
[1734995484737,3.0,3458.5,3457.5,6.5749]
[1734995485451,0.55,3458.6,3457.5,6.5749]
[1734995485593,2.89167,3458.2,3457.5,6.5749]
[1734995485788,1.26262494,3458.1,3457.5,5.7836]
[1734995486145,5.89217,3457.6,3457.5,5.7836]
[1734995486900,3.0,3457.9,3457.5,5.7836]
[1734995487106,3.0,3457.7,3457.5,5.7836]
[1734995487412,3.0,3457.6,3457.5,5.7836]
[1734995488691,2.89217,3457.6,3457.5,5.7836]
[1734995488897,5.89217,3457.6,3457.5,5.7836]
[1734995491519,2.89203,3457.8,3457.5,5.7836]
[1734995491726,2.8921,3457.7,3457.5,5.7836]
[1734995491936,0.55,3458.3,3457.5,5.7836]
[1734995492241,2.89161,3458.3,3457.7,0.7913]
[1734995492442,2.89161,3458.3,3457.7,6.5755]
[1734995493114,0.5783,3458.3,3457.7,6.5755]
[1734995493320,3.5783,3458.3,3457.7,5.7842]
[1734995493504,0.03614909,3458.2,3457.7,5.7842]
[1734995493699,3.5783,3458.3,3457.7,5.7842]
[1734995493898,3.0,3457.9,3457.7,5.7842]
[1734995494138,3.0,3458.3,3457.7,5.7842]
[1734995494510,3.180455,3458.7,3457.8,0.7913]
[1734995494711,3.29300935,3458.8,3457.8,7.15372]
[1734995495403,2.89125,3458.7,3457.8,6.5753]
[1734995495602,4.14370935,3458.4,3457.8,5.784]
[1734995495802,3.0,3457.9,3457.8,5.784]
[1734995496036,5.89192,3457.9,3457.8,5.784]
[1734995500035,2.89283,3456.9,3456.7,0.8329]
[1734995500359,3.0,3457.0,3456.7,0.8329]
[1734995501012,3.0,3457.0,3456.7,6.6185]
[1734995501209,3.29300935,3457.1,3456.7,5.7856]
[1734995501456,6.44284,3456.8,3456.7,5.7856]
[1734995501655,7.79326809,3456.8,3456.7,5.7856]
[1734995501878,7.79326809,3456.8,3456.7,4.33913]
[1734995502017,7.79326809,3456.8,3456.7,1e-05]
[1734995502218,8.63286809,3456.8,3456.7,1e-05]
[1734995503366,2.89371,3455.8,3455.4,0.8329]
[1734995503582,3.0,3455.9,3455.4,0.8329]
[1734995504717,2.89327,3456.3,3455.4,0.8329]
[1734995504718,3.0,3456.3,3455.4,0.8329]
[1734995504932,4.20315072,3456.7,3455.5,0.86183544]
[1734995505221,1.20315072,3456.7,3456.1,0.8329]
[1734995505637,1.20315072,3456.7,3456.1,6.6193]
[1734995505966,3.72475072,3456.7,3456.1,6.6193]
[1734995506322,0.83175072,3456.7,3456.1,6.6193]
[1734995506692,5.89335,3456.2,3456.1,5.7864]
[1734995507278,3.0,3456.3,3456.1,5.7864]
[1734995507762,5.8933,3456.3,3456.1,5.7864]
[1734995508060,3.0,3456.5,3456.1,5.7864]
[1734995508250,3.0,3456.7,3456.1,5.7864]
[1734995508453,1.20315072,3457.1,3456.2,0.8329]
[1734995508620,1.1978625,3457.1,3456.4,2.89312]
[1734995508966,1.1978625,3457.1,3457.0,3.72558]
[1734995509135,1.1978625,3457.1,3457.0,9.883538]
[1734995509323,1.1978625,3457.1,3457.0,6.6183]
[1734995509730,3.29300935,3458.0,3457.0,9.51096]
[1734995510032,3.29300935,3458.0,3457.0,6.6183]
[1734995510452,2.89234,3457.5,3457.0,6.6183]
[1734995510859,2.89239,3457.4,3457.0,6.6183]
[1734995511037,3.29300935,3457.2,3457.0,5.7854]
[1734995511238,5.89259,3457.1,3457.0,5.7854]
[1734995511567,3.0,3457.1,3457.0,5.7854]
[1734995512338,5.89259,3457.1,3457.0,5.7854]
[1734995512572,6.84557384,3457.1,3457.0,5.7854]
[1734995512936,7.39557384,3457.1,3457.0,5.7854]
[1734995514775,3.0,3457.3,3457.0,5.7854]
[1734995514938,3.0,3457.5,3457.0,5.7854]
[1734995515277,3.0,3457.3,3457.0,5.7854]
[1734995515775,3.29300935,3457.6,3457.1,0.8063]
[1734995515978,2.89228,3457.5,3457.1,0.8063]
[1734995516343,2.89249,3457.3,3457.1,0.8063]
[1734995516569,2.89249,3457.3,3457.0,5.7854]
[1734995517056,3.0,3457.2,3457.0,5.7854]
[1734995517454,5.89259,3457.1,3457.0,5.7854]
[1734995517654,3.0,3457.1,3457.0,5.7854]
[1734995518398,3.0,3457.3,3457.0,5.7854]
[1734995518573,3.29300935,3457.2,3457.0,5.7854]
[1734995518747,5.89259,3457.1,3457.0,5.7854]
[1734995519081,8.24154994,3457.1,3457.0,5.7854]
[1734995519381,8.24154994,3457.1,3457.0,2.89272]
[1734995520183,8.24154994,3457.1,3457.0,4e-05]
[1734995520682,3.0,3456.1,3455.6,0.8063]
[1734995520881,3.0,3455.9,3454.8,0.8063]
[1734995521242,3.0,3455.6,3454.8,0.8063]
[1734995522204,0.55,3455.5,3454.8,0.8063]
[1734995522372,3.29300935,3455.2,3454.8,0.8063]
[1734995522685,2.89482,3454.5,3453.7,0.8063]
[1734995522857,3.0,3454.4,3453.7,0.8063]
[1734995523058,3.29300935,3454.6,3453.7,0.8063]
[1734995523059,3.0,3454.5,3453.7,0.8063]
[1734995523286,0.03618747,3454.4,3453.7,0.8063]
[1734995523486,0.03618747,3454.4,3453.1,4.10795697]
[1734995523487,3.0,3454.0,3453.1,2.01835697]
[1734995523789,2.89523,3454.0,3453.1,2.01835697]
[1734995523964,3.0,3453.8,3453.1,2.01835697]
[1734995524309,3.0,3453.8,3453.1,0.8063]
[1734995524606,3.85750035,3453.8,3453.1,0.8063]
[1734995524766,5.89551,3453.7,3453.1,0.8063]
[1734995525113,3.0,3453.7,3453.1,0.8063]
[1734995525992,3.0,3454.2,3453.1,0.8063]
[1734995526151,3.0,3454.2,3453.1,3.70224]
[1734995526360,3.0,3454.2,3453.2,0.370224]
[1734995526669,0.55,3454.4,3453.1,0.8063]
[1734995527179,3.0,3454.5,3453.4,2.89564]
[1734995527378,3.0,3454.6,3453.6,2.89551]
[1734995528255,0.03618829,3454.5,3453.5,0.8984]
[1734995528458,0.55,3454.5,3453.5,0.8984]
[1734995528705,2.89495,3454.3,3453.5,0.8984]
[1734995528996,3.0,3453.9,3453.5,0.8984]
[1734995529212,3.0,3454.2,3453.5,0.8984]
[1734995529363,3.0,3454.2,3453.5,6.689]
[1734995529759,3.29300935,3454.3,3453.5,6.689]
[1734995529760,3.0,3453.8,3453.5,5.7906]
[1734995529966,6.44552,3453.6,3453.5,5.7906]
[1734995530473,3.0,3453.6,3453.5,5.7906]
[1734995530823,3.0,3453.7,3453.5,5.7906]
[1734995530961,3.29300935,3453.9,3453.5,5.7906]
[1734995531157,3.55,3453.8,3453.5,5.7906]
[1734995531528,6.44538,3453.8,3453.5,5.7906]
[1734995531796,5.89552,3453.6,3453.5,5.7906]
[1734995532001,6.44552,3453.6,3453.5,5.7906]
[1734995532986,6.44552,3453.6,3453.5,2.89498]
[1734995533186,4.4324,3453.3,3451.4,0.8984]
[1734995533481,3.0,3452.5,3451.4,3.79576]
[1734995533682,3.0,3452.5,3451.5,0.379576]
[1734995534048,3.0,3452.7,3451.8,0.8984]
[1734995534174,3.29300935,3453.6,3451.9,0.02896516]
[1734995534379,3.0,3453.5,3452.2,0.8984]
[1734995534580,3.0,3453.5,3452.6,0.8984]
[1734995534780,3.0,3453.5,3452.7,0.37948]
[1734995535087,5.89583,3453.3,3452.6,0.8984]
[1734995535292,5.89569,3453.5,3452.6,0.8984]
[1734995535478,3.0,3453.5,3452.6,0.8984]
[1734995535676,3.03620047,3453.5,3452.6,6.6904]
[1734995535876,2.8959,3453.2,3452.6,6.6904]
[1734995536111,3.0,3453.1,3452.6,6.6904]
[1734995536543,3.29300935,3453.6,3452.6,6.6904]
[1734995536544,3.0,3453.4,3452.6,6.6904]
[1734995536727,3.0,3453.4,3452.6,7.35944]
[1734995536880,3.0,3453.5,3452.6,7.35944]
[1734995537084,3.29300935,3454.0,3453.1,0.8984]
[1734995537305,3.29300935,3454.0,3453.2,0.379441]
[1734995537634,3.29300935,3453.6,3453.2,5.7917]
[1734995537785,6.18854935,3453.6,3453.2,5.7917]
[1734995538182,3.29300935,3453.6,3453.2,5.7917]
[1734995538739,2.89574,3453.4,3453.2,5.7917]
[1734995539030,3.0,3453.3,3453.2,5.7917]
[1734995539320,3.0,3453.8,3453.2,5.7917]
[1734995539480,3.29300935,3454.0,3453.2,5.7917]
[1734995540085,3.29300935,3454.0,3453.3,0.92735473]
[1734995540299,3.29300935,3454.0,3453.3,6.69]
[1734995540794,3.0,3453.9,3453.3,6.69]
[1734995540994,2.89556,3453.6,3453.3,5.7916]
[1734995541495,0.55,3453.4,3453.3,5.7916]
[1734995541813,6.44569,3453.4,3453.3,5.7916]
[1734995542013,0.55,3453.4,3453.3,5.7916]
[1734995542208,3.0,3453.5,3453.3,5.7916]
[1734995542538,3.0,3453.9,3453.3,5.7916]
[1734995543179,3.0,3453.6,3453.3,5.7916]
[1734995543385,3.29300935,3453.6,3453.3,5.7916]
[1734995543749,3.0,3453.5,3453.3,5.7916]
[1734995544415,0.9399,3454.9,3453.4,0.8979]
[1734995544618,3.29300935,3455.2,3453.6,0.8979]
[1734995544789,3.29300935,3455.2,3453.7,0.92684731]
[1734995544987,2.8945,3454.9,3453.9,0.8979]
[1734995545205,2.8945,3454.9,3453.9,6.6885]
[1734995545523,3.54260935,3455.6,3454.4,0.8979]
[1734995545835,3.54260935,3455.6,3454.8,0.8979]
[1734995545988,3.54260935,3455.6,3454.8,6.6869]
[1734995546183,0.2496,3455.6,3454.8,6.6869]
[1734995546432,0.2496,3455.6,3455.1,2.89419]
[1734995546598,0.2496,3455.6,3455.1,8.68269]
[1734995546930,0.2496,3455.6,3455.2,0.98989119]
[1734995547125,0.2496,3455.6,3455.5,3.79183]
[1734995547297,0.2496,3455.6,3455.5,9.60866067]
[1734995547638,0.2496,3455.6,3455.5,9.57973]
[1734995548611,2.89245,3457.3,3456.1,0.8979]
[1734995548814,3.79668271,3457.2,3456.1,6.6848]
[1734995548999,0.55,3457.1,3456.1,6.6848]
[1734995549552,2.89277,3456.9,3456.1,6.6848]
[1734995550037,3.0,3456.8,3456.1,6.6848]
[1734995551249,2.8929,3456.8,3456.1,6.6848]
[1734995551448,3.0,3456.6,3456.1,5.7869]
[1734995551634,3.0,3456.3,3456.1,5.7869]
[1734995551842,3.0,3456.4,3456.1,5.7869]
[1734995552551,6.44335,3456.2,3456.1,5.7869]
[1734995553612,3.0,3456.4,3456.1,5.7869]
[1734995553809,3.712237,3456.4,3456.1,5.7869]
[1734995554050,3.0,3456.3,3456.1,5.7869]
[1734995554615,4.00524635,3456.4,3456.1,5.7869]
[1734995554616,6.44335,3456.2,3456.1,5.7869]
[1734995554815,7.38325,3456.2,3456.1,4.34018]
[1734995555109,2.89439,3455.0,3453.6,2.89546]
[1734995555312,0.03618191,3454.9,3453.7,0.8979]
[1734995555563,2.89474,3454.6,3453.7,0.8979]
[1734995555765,5.89478,3454.5,3453.7,6.6888]
[1734995556128,2.89495,3454.3,3453.7,6.6888]
[1734995556328,3.589478,3454.5,3453.7,6.6888]
[1734995556580,3.0,3454.3,3453.7,6.6888]
[1734995557670,2.89497,3454.3,3453.7,6.6888]
[1734995557873,2.89501,3454.3,3453.7,6.6888]
[1734995558184,0.55,3454.4,3453.7,6.6888]
[1734995558736,3.0,3454.3,3453.7,6.6888]
[1734995559134,3.0,3454.5,3453.7,6.6888]
[1734995561733,3.0,3454.5,3453.7,5.7909]
[1734995561734,2.89536,3453.8,3453.7,5.7909]
[1734995561970,9.73836935,3453.8,3453.7,5.7909]
[1734995564154,6.29300935,3453.8,3453.7,5.7909]
[1734995564487,3.0,3454.0,3453.7,5.7909]
[1734995564687,3.0,3454.1,3453.7,5.7909]
[1734995565053,3.29300935,3454.2,3453.8,0.8979]
[1734995565380,3.29300935,3454.2,3453.8,6.6886]
[1734995565877,0.9399,3454.7,3453.8,6.6886]
[1734995565878,3.83458,3454.7,3453.8,6.6886]
[1734995566067,3.29300935,3454.6,3453.8,7.35746]
[1734995566262,6.18743935,3455.0,3453.8,10.25279]
[1734995566463,3.29300935,3455.0,3453.8,7.35746]
[1734995566668,2.89451,3454.9,3453.8,7.35746]
[1734995566905,3.29300935,3455.0,3453.8,7.35746]
[1734995567105,0.71271694,3454.9,3453.8,6.6886]
[1734995567405,2.89512,3454.1,3453.8,6.6886]
[1734995567607,3.0,3454.0,3453.8,5.7907]
[1734995567966,5.89524,3454.0,3453.8,5.7907]
[1734995568504,2.89477,3454.5,3453.8,5.7907]
[1734995568505,3.0,3454.5,3453.8,5.7907]
[1734995568722,2.89454,3454.8,3454.0,0.8979]
[1734995569006,3.71271694,3454.9,3454.0,6.6883]
[1734995569377,6.60722694,3454.9,3454.0,6.6883]
[1734995570112,3.9399,3454.9,3454.0,5.7904]
[1734995570407,6.83501,3454.1,3454.0,5.7904]
[1734995571313,7.38501,3454.1,3454.0,5.7904]
[1734995572520,7.38501,3454.1,3454.0,4.3428]
[1734995573018,2.89585,3453.3,3452.8,0.9366]
[1734995573223,3.0,3453.2,3452.8,0.9366]
[1734995574215,3.0,3453.4,3452.8,0.9366]
[1734995574402,2.8957,3453.4,3452.8,0.9366]
[1734995574604,3.0,3453.3,3452.8,0.9366]
[1734995574811,3.0,3453.7,3452.8,0.9366]
[1734995575009,3.0,3453.7,3452.8,1.319887]
[1734995575634,0.55,3453.6,3452.8,0.9366]
[1734995575920,3.0,3453.3,3452.8,0.9366]
[1734995576125,3.0,3453.3,3451.4,0.9366]
[1734995576126,3.29300935,3453.0,3451.4,0.9366]
[1734995576323,5.8972,3451.6,3451.4,0.9366]
[1734995576481,6.18928935,3452.7,3451.4,0.9366]
[1734995576482,3.0,3451.8,3451.4,0.9366]
[1734995576685,3.0,3452.2,3451.4,0.9366]
[1734995576928,2.89679,3452.1,3451.4,0.9366]
[1734995577130,3.0,3452.2,3451.4,0.9366]
[1734995578846,3.0,3451.7,3451.4,0.9366]
[1734995579012,2.89723,3451.6,3450.5,0.9366]
[1734995579206,2.89757,3451.2,3450.5,0.9366]
[1734995579407,3.29300935,3451.5,3450.5,0.9366]
[1734995579408,2.89763,3451.1,3450.5,6.7323]
[1734995579589,3.29300935,3451.5,3450.5,6.7323]
[1734995579590,3.29300935,3450.6,3450.5,6.7323]
[1734995579935,9.19104935,3450.6,3450.5,5.7957]
[1734995580231,10.94993929,3450.6,3450.5,5.7957]
[1734995581975,10.94993929,3450.6,3449.0,0.8948]
[1734995581976,2.89886,3449.7,3449.0,0.8948]
[1734995582274,5.93513047,3449.6,3449.0,0.8948]
[1734995582496,3.29300935,3449.3,3449.0,0.8948]
[1734995582634,3.03624218,3449.2,3448.1,2.90006]
[1734995582828,3.0,3449.2,3448.3,0.8948]
[1734995583729,3.0,3449.2,3448.5,2.89977]
[1734995584037,3.0,3449.2,3448.3,0.8948]
[1734995584465,3.0,3449.2,3448.6,2.8997]
[1734995584736,3.0,3449.2,3449.0,0.8948]
[1734995584931,3.0,3449.6,3449.0,0.8948]
[1734995585247,3.0,3450.0,3449.2,2.89917]
[1734995585662,0.9124,3451.2,3449.3,0.8948]
[1734995585861,0.9124,3451.2,3450.0,2.89853]
[1734995586034,0.9486268,3451.2,3450.1,2.89844]
[1734995586242,3.29300935,3451.4,3450.6,0.8948]
[1734995586435,3.32923079,3451.4,3450.6,3.79281]
[1734995586757,3.32923079,3451.4,3450.6,0.8948]
[1734995586758,3.29300935,3451.4,3450.6,0.8948]
[1734995587356,4.20540935,3451.8,3450.9,2.89777]
[1734995587544,3.29300935,3451.8,3450.9,8.69257]
[1734995587777,4.23200935,3452.2,3451.1,2.89762]
[1734995587991,4.23200935,3452.2,3451.1,5.7953]
[1734995588161,2.89751,3451.3,3451.1,5.7953]
[1734995588360,2.89754,3451.2,3451.1,1.21880945]
[1734995588558,2.89754,3451.2,3449.7,0.9666]
[1734995588559,2.33450619,3451.2,3449.7,0.9666]
[1734995588863,0.939,3450.7,3448.7,0.9666]
[1734995589189,5.8988,3449.7,3448.7,0.9666]
[1734995589350,0.03624037,3449.6,3448.7,0.9666]
[1734995589875,3.0,3449.8,3448.7,3.86623]
[1734995590065,3.0,3449.8,3448.8,0.386623]
[1734995590267,3.03624028,3449.8,3448.8,0.386623]
[1734995590587,3.0,3449.7,3448.7,0.9666]
[1734995590766,3.0,3449.7,3448.7,3.86623]
[1734995591166,0.939,3449.9,3448.8,2.89955]
[1734995591362,0.58624027,3450.1,3449.0,2.89937]
[1734995591567,3.55,3450.0,3449.0,2.89937]
[1734995591765,0.55,3450.0,3448.8,2.89955]
[1734995591976,3.03623868,3450.2,3449.0,0.386597]
[1734995592178,0.03623868,3450.2,3449.2,2.89916]
[1734995592660,0.55,3450.2,3449.2,2.89916]
[1734995593003,0.58623576,3450.2,3449.0,3.285967]
[1734995593211,0.55,3450.0,3448.7,0.9666]
[1734995593386,0.55,3450.0,3448.7,3.86618]
[1734995593387,3.55,3449.8,3448.7,3.86618]
[1734995593571,0.03623987,3449.7,3448.7,0.9666]
[1734995593773,3.55,3449.9,3448.9,2.89946]
[1734995594361,0.03623987,3449.8,3448.9,5.7981]
[1734995594878,3.0,3450.2,3449.0,0.9666]
[1734995595213,3.939,3450.7,3449.6,2.89888]
[1734995595508,2.8983,3450.3,3449.6,5.7978]
[1734995595724,0.03623455,3450.2,3449.6,5.7978]
[1734995596082,2.8983,3450.3,3449.6,5.7978]
[1734995596278,1.52883,3450.3,3449.6,5.7978]
[1734995596496,3.0,3449.9,3449.6,5.7978]
[1734995596717,3.0,3450.1,3449.6,5.7978]
[1734995596926,0.55,3450.0,3449.6,5.7978]
[1734995597727,3.9035,3450.7,3449.6,5.7978]
[1734995597930,3.0,3450.7,3449.6,6.47424]
[1734995598207,0.0362313,3450.7,3449.9,0.9543]
[1734995599148,2.89814,3450.5,3449.6,5.7978]
[1734995599355,0.03622899,3450.4,3449.6,5.7978]
[1734995599519,3.0,3450.0,3449.6,5.7978]
[1734995599847,0.03623558,3449.9,3449.6,5.7978]
[1734995600054,1.4535,3450.3,3449.6,5.7978]
[1734995600349,4.4535,3450.3,3449.6,5.7978]
[1734995600532,0.03623552,3450.2,3449.6,5.7978]
[1734995600849,3.03623552,3450.2,3449.6,5.7978]
[1734995601223,3.0,3449.9,3449.6,5.7978]
[1734995601419,5.89867,3449.9,3449.6,5.7978]
[1734995601619,0.73880455,3450.2,3449.6,5.7978]
[1734995601830,2.89815,3450.5,3449.6,5.7978]
[1734995602147,3.55,3450.3,3449.6,5.7978]
[1734995602728,3.44833,3450.3,3449.6,5.7978]
[1734995602927,3.0,3450.2,3449.6,5.7978]
[1734995603745,0.55,3450.3,3449.6,5.7978]
[1734995603956,3.5862356,3450.6,3449.6,5.7978]
[1734995604157,0.55,3450.4,3449.6,5.7978]
[1734995604357,0.58623561,3450.4,3449.6,5.7978]
[1734995604760,3.0,3450.3,3449.6,5.7978]
[1734995604959,2.89853,3450.1,3449.6,5.7978]
[1734995605119,3.0,3450.0,3449.6,5.7978]
[1734995606461,0.55,3450.6,3449.7,0.9411]
[1734995608662,3.0,3450.4,3449.7,0.9411]
[1734995609355,2.89815,3450.5,3449.7,0.9411]
[1734995609356,0.55,3450.2,3449.7,0.9411]
[1734995609559,0.55,3450.2,3449.6,5.7978]
[1734995609757,3.0,3450.4,3449.6,5.7978]
[1734995610060,0.64844354,3450.3,3449.6,8.69662]
[1734995610259,3.0,3450.7,3449.8,0.9411]
[1734995610670,3.03622849,3450.7,3449.8,6.7385]
[1734995610881,5.93419849,3450.7,3449.8,6.7385]
[1734995611168,5.89797,3450.7,3449.8,6.7385]
[1734995611459,0.03622876,3450.6,3449.8,6.7385]
[1734995611635,2.89859,3450.0,3449.8,6.7385]
[1734995611832,5.89863,3449.9,3449.8,5.7974]
[1734995612433,3.0,3450.1,3449.8,5.7974]
[1734995613328,3.0,3450.5,3449.8,5.7974]
[1734995613956,3.0,3450.4,3449.8,5.7974]
[1734995614156,2.89838,3450.2,3449.8,5.7974]
[1734995614366,2.89863,3449.9,3449.8,5.7974]
[1734995614523,6.44863,3449.9,3449.8,5.7974]
[1734995614730,7.80598574,3449.9,3449.8,5.7974]
[1734995615355,3.0,3449.3,3448.7,0.9411]
[1734995615523,3.0,3449.2,3448.7,0.9411]
[1734995615727,3.0,3449.3,3448.7,0.9411]
[1734995616024,1.90735574,3449.9,3448.7,0.9411]
[1734995616025,3.0,3449.7,3448.7,0.9411]
[1734995616226,3.0,3450.1,3449.1,2.89929]
[1734995616549,3.0,3450.1,3449.2,2.89918]
[1734995616862,3.0,3450.1,3449.3,0.9411]
[1734995616863,0.03623266,3450.0,3449.3,0.9411]
[1734995617262,3.0,3449.6,3448.2,0.9411]
[1734995617463,3.0,3449.6,3448.6,0.9411]
[1734995618029,3.0,3449.5,3448.6,0.9411]
[1734995618229,3.0,3449.5,3448.6,1.325184]